bitfinex/quotes_BTCUSD_20250115
["timestamp","ask_amount","ask_price","bid_price","bid_amount"]
[1736968014685,0.20091,99547.0,99546.0,1.60722692]
[1736968015217,0.20091,99547.0,99546.0,1.60752692]
[1736968015837,0.20091,99547.0,99546.0,1.60732179]
[1736968016424,0.20091,99547.0,99546.0,1.60632179]
[1736968016827,0.20091,99547.0,99546.0,1.60732179]
[1736968017032,0.20091,99547.0,99546.0,1.60632179]
[1736968017229,0.20091,99547.0,99546.0,1.61532727]
[1736968017405,0.20191,99547.0,99546.0,1.61532727]
[1736968018668,0.20191,99547.0,99546.0,1.62156727]
[1736968019088,0.20291,99547.0,99546.0,1.62156727]
[1736968021232,0.20291,99547.0,99546.0,1.61532727]
[1736968021508,0.20291,99547.0,99546.0,1.62156727]
[1736968021889,0.20191,99547.0,99546.0,1.62156727]
[1736968022052,0.20191,99547.0,99546.0,1.62256727]
[1736968022637,0.20191,99547.0,99546.0,1.62156727]
[1736968023409,0.20291,99547.0,99546.0,1.62156727]
[1736968024304,0.20291,99547.0,99546.0,0.12156727]
[1736968024678,0.20291,99547.0,99546.0,1.62156727]
[1736968026078,0.33081,99547.0,99546.0,1.51110035]
[1736968026301,0.33081,99547.0,99546.0,1.51734035]
[1736968027689,0.1,99543.0,99529.0,0.05024364]
[1736968027912,0.200942,99531.0,99530.0,1.00532824]
[1736968028116,0.200932,99537.0,99531.0,0.15]
[1736968028332,0.200926,99540.0,99533.0,0.15]
[1736968028570,0.002,99547.0,99535.0,0.15]
[1736968028571,0.20092,99543.0,99535.0,0.15]
[1736968028814,0.20092,99543.0,99542.0,1.5]
[1736968029062,0.20092,99543.0,99542.0,2.6597988]
[1736968029063,0.20192,99543.0,99542.0,2.6597988]
[1736968029435,0.20092,99543.0,99542.0,2.6597988]
[1736968030531,0.20192,99543.0,99542.0,2.6597988]
[1736968030763,0.20092,99543.0,99542.0,2.6597988]
[1736968031091,0.20092,99543.0,99542.0,2.6607988]
[1736968035511,0.20092,99543.0,99542.0,2.66733385]
[1736968037084,0.20092,99543.0,99542.0,2.66633385]
[1736968037488,0.20192,99543.0,99542.0,2.66633385]
[1736968037907,0.20292,99543.0,99542.0,2.66633385]
[1736968040940,0.20292,99543.0,99542.0,2.66812914]
[1736968041432,0.20092,99543.0,99542.0,2.66812914]
[1736968041684,0.20092,99543.0,99542.0,2.66912914]
[1736968042437,0.20092,99543.0,99542.0,2.70022904]
[1736968047253,0.20092,99543.0,99542.0,2.69981223]
[1736968047430,0.20092,99543.0,99542.0,2.70605223]
[1736968051113,0.200889,99557.0,99543.0,0.15]
[1736968051312,0.200879,99562.0,99556.0,0.10422692]
[1736968051514,0.20093431,99562.0,99557.0,0.10422692]
[1736968051720,0.200887,99558.0,99557.0,0.11069271]
[1736968051946,0.200887,99558.0,99557.0,0.00646579]
[1736968052165,0.280487,99558.0,99557.0,0.01270579]
[1736968053119,0.280487,99558.0,99557.0,0.00646579]
[1736968053346,0.280487,99558.0,99557.0,0.01270579]
[1736968053594,0.280487,99558.0,99557.0,1.51270579]
[1736968054222,0.282487,99558.0,99557.0,1.51270579]
[1736968054421,0.29163334,99558.0,99557.0,1.51270579]
[1736968054624,0.29263334,99558.0,99557.0,1.51270579]
[1736968054980,0.29163334,99558.0,99557.0,1.51270579]
[1736968055409,0.29363334,99558.0,99557.0,1.51270579]
[1736968058356,0.284487,99558.0,99557.0,1.61693271]
[1736968058619,0.204887,99558.0,99557.0,1.61693271]
[1736968059175,0.202887,99558.0,99557.0,1.61693271]
[1736968059672,0.200887,99558.0,99557.0,1.64802298]
[1736968059856,0.200887,99558.0,99557.0,1.64802251]
[1736968060031,0.200887,99558.0,99557.0,1.64802243]
[1736968060822,0.201887,99558.0,99557.0,1.64802243]
[1736968061319,0.200887,99558.0,99557.0,1.64802243]
[1736968061520,0.201887,99558.0,99557.0,1.64802243]
[1736968062166,0.200887,99558.0,99557.0,1.64802243]
[1736968062457,0.200887,99558.0,99557.0,1.64902243]
[1736968062634,0.200887,99558.0,99557.0,1.64278243]
[1736968062833,0.200887,99558.0,99557.0,1.64902243]
[1736968063036,0.200887,99558.0,99557.0,1.65002243]
[1736968063398,0.200887,99558.0,99557.0,1.64902243]
[1736968063597,0.200887,99558.0,99557.0,1.64802243]
[1736968063859,0.200887,99558.0,99557.0,1.64902243]
[1736968064062,0.200887,99558.0,99557.0,1.61793271]
[1736968064527,0.200881,99561.0,99557.0,1.64902174]
[1736968064768,0.200881,99561.0,99558.0,0.13531595]
[1736968064997,5.531e-05,99562.0,99561.0,0.15]
[1736968065234,5.531e-05,99562.0,99561.0,1.78531595]
[1736968065468,5.531e-05,99562.0,99561.0,1.79190158]
[1736968066811,0.00105531,99562.0,99561.0,1.79190158]
[1736968067034,5.531e-05,99562.0,99561.0,1.79190158]
[1736968067177,5.531e-05,99562.0,99561.0,1.79590158]
[1736968067613,5.531e-05,99562.0,99561.0,1.79690158]
[1736968069571,5.531e-05,99562.0,99561.0,1.64690158]
[1736968074844,5.531e-05,99562.0,99561.0,1.65314158]
[1736968076085,5.531e-05,99562.0,99561.0,1.62205255]
[1736968077059,0.00091031,99562.0,99561.0,1.62205255]
[1736968078714,0.00091031,99562.0,99561.0,1.80306961]
[1736968081343,0.00091031,99562.0,99561.0,1.64682961]
[1736968081558,0.04821031,99562.0,99561.0,1.63714855]
[1736968081776,0.04821031,99562.0,99561.0,1.64330855]
[1736968082671,0.04821031,99562.0,99561.0,1.63930855]
[1736968082924,0.05021031,99562.0,99561.0,1.63930855]
[1736968083116,0.05021031,99562.0,99561.0,1.63830855]
[1736968084114,0.05221031,99562.0,99561.0,1.63830855]
[1736968085955,0.05221031,99562.0,99561.0,1.52792163]
[1736968086172,0.12771031,99562.0,99561.0,1.53408163]
[1736968087358,0.12771031,99562.0,99561.0,1.52792163]
[1736968087579,0.12771031,99562.0,99561.0,1.53408163]
[1736968088188,0.12771031,99562.0,99561.0,1.52792163]
[1736968088392,0.12771031,99562.0,99561.0,1.53408163]
[1736968089433,0.12771031,99562.0,99561.0,1.52792163]
[1736968089434,0.27771031,99562.0,99561.0,1.52792163]
[1736968089650,0.1,99557.0,99555.0,1.00532824]
[1736968089900,0.27395574,99556.0,99555.0,1.00532824]
[1736968090126,0.2727,99556.0,99555.0,1.00532824]
[1736968090365,0.15,99556.0,99554.0,0.00616]
[1736968090569,0.47484879,99555.0,99554.0,1.01148824]
[1736968090787,0.473593,99555.0,99554.0,1.01148824]
[1736968091213,0.473593,99555.0,99554.0,1.00532824]
[1736968091419,0.403889,99557.0,99542.0,0.00179529]
[1736968091420,0.1,99551.0,99542.0,0.00179529]
[1736968091650,0.15,99548.0,99545.0,0.05024364]
[1736968091868,0.473612,99546.0,99545.0,0.05024364]
[1736968092076,0.473638,99533.0,99532.0,0.0964]
[1736968092287,0.473638,99533.0,99532.0,2.65813188]
[1736968093316,0.476638,99533.0,99532.0,2.65813188]
[1736968093740,0.481638,99533.0,99532.0,2.65813188]
[1736968094364,0.4910096,99533.0,99532.0,2.65813188]
[1736968095248,0.4910096,99533.0,99532.0,1.15813188]
[1736968095859,0.4910096,99533.0,99532.0,2.65813188]
[1736968096971,0.4910096,99533.0,99532.0,2.55557188]
[1736968097189,0.4910096,99533.0,99532.0,2.56173188]
[1736968097615,0.5683096,99533.0,99532.0,1.05557188]
[1736968097825,0.6155096,99533.0,99532.0,0.05024364]
[1736968098032,0.1,99527.0,99526.0,0.00616]
[1736968098244,0.1,99527.0,99522.0,1.05557188]
[1736968098245,0.350952,99526.0,99522.0,1.05557188]
[1736968098455,0.3727,99524.0,99523.0,0.00616]
[1736968098595,0.573656,99524.0,99523.0,0.00616]
[1736968099337,0.57370602,99524.0,99523.0,0.00616]
[1736968100570,0.57470602,99524.0,99523.0,0.01416]
[1736968101220,0.57470602,99524.0,99522.0,0.05024364]
[1736968101372,0.57620602,99524.0,99523.0,0.009]
[1736968101569,0.57620602,99524.0,99523.0,1.509]
[1736968101771,0.47620602,99524.0,99523.0,1.509]
[1736968101978,0.57520602,99524.0,99523.0,0.009]
[1736968102180,0.076,99523.0,99522.0,0.05024364]
[1736968102381,0.076,99523.0,99522.0,0.06824364]
[1736968102809,0.076,99523.0,99522.0,0.05924364]
[1736968103011,0.225,99523.0,99522.0,0.009]
[1736968103273,0.225,99523.0,99518.0,0.00616]
[1736968103274,0.475967,99519.0,99518.0,0.00616]
[1736968103428,0.35097,99517.0,99516.0,1.05557188]
[1736968104331,0.575974,99515.0,99514.0,7.1e-07]
[1736968104583,0.575974,99515.0,99514.0,0.05024435]
[1736968104735,0.675974,99515.0,99514.0,0.05024435]
[1736968105166,0.375,99501.0,99500.0,1.094286]
[1736968105373,0.676003,99501.0,99500.0,1.0073271]
[1736968105572,0.576003,99501.0,99500.0,1.0073271]
[1736968105778,0.476003,99501.0,99500.0,1.0073271]
[1736968105986,0.476003,99501.0,99500.0,2.5073271]
[1736968106844,0.482003,99501.0,99500.0,2.5134871]
[1736968107459,0.49141781,99501.0,99500.0,2.5134871]
[1736968107663,0.50041781,99501.0,99500.0,2.5134871]
[1736968108253,0.50041781,99501.0,99500.0,1.0134871]
[1736968108835,0.50041781,99501.0,99500.0,2.5134871]
[1736968114431,0.50041781,99501.0,99500.0,2.51528281]
[1736968117551,0.50041781,99501.0,99500.0,1.01528281]
[1736968117870,0.50041781,99501.0,99500.0,2.51528281]
[1736968119648,0.50041781,99501.0,99500.0,2.51520281]
[1736968120182,0.1,99497.0,99488.0,0.00179487]
[1736968120374,0.574125,99490.0,99489.0,0.05203851]
[1736968120539,0.674125,99490.0,99489.0,0.05024364]
[1736968120759,0.77835192,99490.0,99489.0,0.05024364]
[1736968120988,0.4731,99489.0,99488.0,8.7e-07]
[1736968121192,0.1,99475.0,99474.0,0.05208403]
[1736968121410,0.25125682,99475.0,99474.0,0.05208403]
[1736968121626,0.35,99475.0,99474.0,0.05208403]
[1736968121843,0.35,99475.0,99474.0,0.05258504]
[1736968122077,0.35,99475.0,99474.0,0.07125581]
[1736968122507,0.353,99475.0,99474.0,0.07125581]
[1736968122925,0.35,99475.0,99474.0,0.07125581]
[1736968123395,0.37925662,99475.0,99474.0,0.05258504]
[1736968123566,0.354,99475.0,99474.0,0.05258504]
[1736968123907,0.36349893,99475.0,99474.0,0.05258504]
[1736968124127,0.36949893,99475.0,99474.0,0.05258504]
[1736968125330,0.16949893,99475.0,99474.0,0.05258504]
[1736968125589,0.16949893,99475.0,99474.0,1.55258504]
[1736968125836,0.16949893,99475.0,99474.0,1.60282868]
[1736968126292,0.16949893,99475.0,99474.0,1.60368398]
[1736968126829,0.26949893,99475.0,99474.0,1.60368398]
[1736968127266,0.16949893,99475.0,99474.0,1.60368398]
[1736968127520,0.16949893,99475.0,99474.0,1.60976398]
[1736968129533,0.16949893,99475.0,99474.0,0.10976398]
[1736968134752,0.16949893,99475.0,99474.0,1.60976398]
[1736968137155,0.01949893,99475.0,99474.0,1.60976398]
[1736968137802,0.01949893,99475.0,99474.0,1.7957909]
[1736968139257,0.02129548,99475.0,99474.0,1.7957909]
[1736968140486,0.01529548,99475.0,99474.0,1.7957909]
[1736968140698,0.01929548,99475.0,99474.0,1.7957909]
[1736968141506,0.01529548,99475.0,99474.0,1.7957909]
[1736968141734,0.01829548,99475.0,99474.0,1.7957909]
[1736968142572,0.01529548,99475.0,99474.0,1.7957909]
[1736968143001,0.01419548,99475.0,99474.0,1.7957909]
[1736968143296,0.28839548,99475.0,99474.0,0.10368398]
[1736968143508,0.28439548,99475.0,99474.0,0.10368398]
[1736968143893,0.28439548,99475.0,99474.0,0.10668398]
[1736968144031,0.28439548,99475.0,99474.0,0.10368398]
[1736968144459,0.28739548,99475.0,99474.0,0.10972398]
[1736968144672,0.28939548,99475.0,99474.0,0.10972398]
[1736968145114,0.29339548,99475.0,99474.0,0.10972398]
[1736968145317,0.29639548,99475.0,99474.0,0.10972398]
[1736968145986,0.29339548,99475.0,99474.0,0.10972398]
[1736968146175,0.29739548,99475.0,99474.0,3e-07]
[1736968147169,0.28839548,99475.0,99474.0,3e-07]
[1736968147411,0.29439548,99475.0,99474.0,3e-07]
[1736968150901,0.35,99473.0,99472.0,0.01003064]
[1736968151107,0.0786,99468.0,99464.0,0.05024364]
[1736968151312,0.351075,99465.0,99464.0,0.05024364]
[1736968153108,0.351075,99465.0,99463.0,1.00532824]
[1736968153109,0.1,99454.0,99450.0,1.0074229]
[1736968153331,0.25,99451.0,99450.0,1.00748333]
[1736968153560,0.15,99451.0,99450.0,1.00748333]
[1736968153981,0.15,99451.0,99450.0,1.05772697]
[1736968155820,0.151,99451.0,99450.0,1.05772697]
[1736968156202,0.16058429,99451.0,99450.0,1.05763638]
[1736968156425,0.16058429,99451.0,99450.0,1.05754583]
[1736968156919,0.16058429,99451.0,99450.0,2.55754583]
[1736968157799,0.1618413,99451.0,99450.0,1.05754583]
[1736968158221,0.2618413,99451.0,99450.0,1.02007714]
[1736968158502,0.351106,99450.0,99449.0,0.07552298]
[1736968158772,0.351106,99450.0,99449.0,1.08092679]
[1736968158987,0.351106,99450.0,99449.0,1.02059379]
[1736968159297,0.351106,99450.0,99449.0,5.7e-07]
[1736968159939,0.352106,99450.0,99449.0,5.7e-07]
[1736968160807,0.353106,99450.0,99449.0,5.7e-07]
[1736968160996,0.20113,99438.0,99434.0,0.00604]
[1736968161186,0.426536,99435.0,99434.0,0.00015036]
[1736968161390,0.471936,99435.0,99434.0,0.00015036]
[1736968161807,0.471936,99435.0,99434.0,3.6e-07]
[1736968161982,0.571936,99435.0,99434.0,3.6e-07]
[1736968162408,0.35,99432.0,99431.0,3.6e-07]
[1736968162783,0.25,99432.0,99431.0,3.6e-07]
[1736968163007,0.35,99432.0,99431.0,3.6e-07]
[1736968163644,0.351,99432.0,99431.0,3.6e-07]
[1736968163837,0.36085236,99432.0,99431.0,3.6e-07]
[1736968164035,0.36185236,99432.0,99431.0,3.6e-07]
[1736968164244,0.671958,99424.0,99423.0,7.8e-07]
[1736968164451,0.15,99417.0,99408.0,0.00604]
[1736968164654,0.201184,99411.0,99408.0,0.00604]
[1736968165439,0.201184,99411.0,99394.0,0.05024364]
[1736968165698,0.201184,99411.0,99409.0,0.00604]
[1736968166404,0.210184,99411.0,99409.0,0.00604]
[1736968166647,0.210184,99411.0,99409.0,0.05628364]
[1736968167652,0.215184,99411.0,99409.0,0.05628364]
[1736968168897,0.22502668,99411.0,99409.0,0.05628364]
[1736968169717,0.22502668,99411.0,99409.0,0.05024364]
[1736968169919,0.22502668,99411.0,99409.0,0.05628364]
[1736968170601,0.30042668,99411.0,99409.0,0.05024364]
[1736968170844,0.30042668,99411.0,99408.0,0.00604]
[1736968170845,0.351189,99409.0,99408.0,0.00604]
[1736968171800,0.351193,99407.0,99406.0,1.00532824]
[1736968173424,0.359193,99407.0,99406.0,1.00532824]
[1736968173660,0.364193,99407.0,99406.0,1.00532824]
[1736968174388,0.364193,99407.0,99406.0,1.01128824]
[1736968174621,0.364193,99407.0,99406.0,2.51128824]
[1736968175143,0.364193,99407.0,99406.0,2.50532824]
[1736968175328,0.214193,99407.0,99406.0,2.69631516]
[1736968175538,0.214193,99407.0,99406.0,2.69121126]
[1736968175773,0.013,99407.0,99406.0,2.69717126]
[1736968176227,0.013,99407.0,99406.0,2.69121126]
[1736968176447,0.008,99407.0,99406.0,2.79717126]
[1736968176635,0.001,99407.0,99406.0,2.79717126]
[1736968176879,0.001,99407.0,99406.0,2.82757126]
[1736968177135,0.0763,99471.0,99427.0,0.1]
[1736968177357,0.201106,99450.0,99438.0,0.1]
[1736968177569,0.201117,99445.0,99439.0,0.11018692]
[1736968177752,0.201117,99445.0,99444.0,1.5]
[1736968177968,0.201117,99445.0,99444.0,1.60422692]
[1736968179809,0.20087528,99445.0,99444.0,1.60622692]
[1736968180031,0.20187528,99445.0,99444.0,1.61218692]
[1736968180714,0.20087528,99445.0,99444.0,1.61218692]
[1736968180950,0.20187528,99445.0,99444.0,1.61218692]
[1736968181462,0.20187528,99445.0,99444.0,1.60622692]
[1736968181681,0.20187528,99445.0,99444.0,0.11218692]
[1736968181901,0.20187528,99445.0,99444.0,0.10422692]
[1736968182017,0.20087528,99445.0,99444.0,0.11018692]
[1736968182255,0.20087528,99445.0,99444.0,0.10422692]
[1736968182457,0.20087528,99445.0,99444.0,0.11018692]
[1736968182458,0.20287528,99445.0,99444.0,0.11018692]
[1736968182942,0.20187528,99445.0,99444.0,0.11018692]
[1736968183141,0.20087528,99445.0,99444.0,0.11018692]
[1736968183340,0.20287528,99445.0,99444.0,0.11018692]
[1736968183512,0.20487528,99445.0,99444.0,0.11018692]
[1736968184800,0.20487528,99445.0,99444.0,0.00596]
[1736968187996,0.2066731,99445.0,99438.0,1.05557188]
[1736968188139,0.201128,99439.0,99438.0,1.05557188]
[1736968188345,0.201128,99439.0,99438.0,1.1657588]
[1736968189754,0.201128,99439.0,99438.0,1.1667588]
[1736968189968,0.20173428,99439.0,99438.0,1.1667588]
[1736968190555,0.20073428,99439.0,99438.0,1.1667588]
[1736968191787,0.20073428,99439.0,99438.0,1.1607988]
[1736968191998,0.20073428,99439.0,99438.0,1.1667588]
[1736968192630,0.20173428,99439.0,99438.0,1.1667588]
[1736968193059,0.20073428,99439.0,99438.0,1.1667588]
[1736968193275,0.20173428,99439.0,99438.0,1.1667588]
[1736968193771,0.20073428,99439.0,99438.0,1.1667588]
[1736968194021,0.20073428,99439.0,99438.0,1.1657588]
[1736968194277,0.20173428,99439.0,99438.0,1.1657588]
[1736968194481,0.20173428,99439.0,99438.0,1.06153188]
[1736968195147,0.20173428,99439.0,99438.0,1.05557188]
[1736968195347,0.20173428,99439.0,99438.0,1.06253188]
[1736968195551,0.20173428,99439.0,99438.0,1.06153188]
[1736968195790,0.20173428,99439.0,99438.0,1.01128824]
[1736968196005,0.20373428,99439.0,99438.0,1.01128824]
[1736968196248,0.20073428,99439.0,99438.0,1.00532824]
[1736968196464,0.35573428,99439.0,99438.0,1.01128824]
[1736968196940,0.35373428,99439.0,99438.0,1.01128824]
[1736968197153,0.35673428,99439.0,99438.0,1.01128824]
[1736968197635,0.35373428,99439.0,99438.0,1.01128824]
[1736968198067,0.35773428,99439.0,99438.0,1.01128824]
[1736968198526,0.35473428,99439.0,99438.0,1.01128824]
[1736968199710,0.36173428,99439.0,99438.0,2.51128824]
[1736968199937,0.21173428,99439.0,99438.0,2.61551516]
[1736968200363,0.011,99439.0,99438.0,2.61551516]
[1736968200798,0.007,99439.0,99438.0,2.69957006]
[1736968201249,0.201119,99444.0,99438.0,2.69957006]
[1736968201460,0.201128,99440.0,99439.0,0.10422692]
[1736968201897,0.201128,99440.0,99439.0,0.11022692]
[1736968202309,0.201128,99440.0,99439.0,0.10422692]
[1736968202574,0.201128,99440.0,99439.0,0.11022692]
[1736968203315,0.201128,99440.0,99439.0,0.10422692]
[1736968203545,0.201128,99440.0,99439.0,0.11022692]
[1736968203745,0.201128,99440.0,99439.0,0.10422692]
[1736968204227,0.203128,99440.0,99438.0,2.50618314]
[1736968204432,0.203128,99440.0,99439.0,0.006]
[1736968205091,0.204128,99440.0,99439.0,0.006]
[1736968205427,0.203128,99440.0,99439.0,0.006]
[1736968205654,0.205128,99440.0,99439.0,0.006]
[1736968205881,0.203128,99440.0,99439.0,0.006]
[1736968206087,0.205128,99440.0,99439.0,0.006]
[1736968206632,0.203128,99440.0,99439.0,0.006]
[1736968206933,0.205128,99440.0,99439.0,0.006]
[1736968208306,0.205128,99440.0,99438.0,1.00618314]
[1736968208513,0.205128,99440.0,99439.0,0.006]
[1736968209003,0.205128,99440.0,99439.0,1.506]
[1736968209226,0.203128,99440.0,99439.0,1.506]
[1736968209439,0.205128,99440.0,99439.0,1.506]
[1736968209917,0.203128,99440.0,99439.0,1.506]
[1736968210421,0.205128,99440.0,99439.0,1.506]
[1736968211957,0.355128,99440.0,99439.0,1.506]
[1736968213356,0.3569233,99440.0,99439.0,1.506]
[1736968214774,0.3569233,99440.0,99438.0,1.00618314]
[1736968214922,0.15,99439.0,99438.0,1.00618314]
[1736968215129,0.15,99439.0,99438.0,1.01218314]
[1736968215371,0.2286,99439.0,99438.0,1.01218314]
[1736968215574,0.2744,99439.0,99438.0,1.01218314]
[1736968215745,0.2744,99439.0,99438.0,9e-07]
[1736968216108,0.40226,99438.0,99434.0,1.06157188]
[1736968216245,0.25125726,99437.0,99434.0,1.06157188]
[1736968216667,0.15,99435.0,99434.0,1.00532824]
[1736968216868,0.15125726,99435.0,99434.0,1.00532824]
[1736968218258,0.15,99435.0,99434.0,1.00532824]
[1736968218613,0.151,99435.0,99434.0,1.00532824]
[1736968218811,0.151,99435.0,99434.0,1.00632824]
[1736968219238,0.151,99435.0,99434.0,1.00532824]
[1736968219439,0.152,99435.0,99434.0,1.00532824]
[1736968220061,0.16159636,99435.0,99434.0,1.00532824]
[1736968220870,0.16059636,99435.0,99434.0,2.50532824]
[1736968221052,0.16259636,99435.0,99434.0,2.50532824]
[1736968221272,0.01059636,99435.0,99434.0,2.50532824]
[1736968221673,0.01459636,99435.0,99434.0,2.50532824]
[1736968222054,0.01759636,99435.0,99434.0,2.50532824]
[1736968222456,0.01459636,99435.0,99434.0,2.50532824]
[1736968222860,0.01859636,99435.0,99434.0,2.50532824]
[1736968225366,0.01859636,99435.0,99434.0,2.50618324]
[1736968226159,0.01859636,99435.0,99434.0,2.51218324]
[1736968230138,0.01859636,99435.0,99434.0,1.01218324]
[1736968230490,0.01859636,99435.0,99434.0,2.51218324]
[1736968232235,0.01859636,99435.0,99434.0,2.51926824]
[1736968232776,0.01859636,99435.0,99434.0,1.12349516]
[1736968233669,0.009,99435.0,99434.0,1.12349516]
[1736968233919,0.009,99435.0,99434.0,1.20159516]
[1736968234115,0.009,99435.0,99434.0,2.70159516]
[1736968235154,0.201134,99436.0,99434.0,2.70159516]
[1736968235381,0.201134,99436.0,99435.0,0.10422692]
[1736968235583,0.201134,99436.0,99435.0,0.11129977]
[1736968236295,0.203134,99436.0,99435.0,0.11129977]
[1736968236768,0.201134,99436.0,99435.0,0.11129977]
[1736968237219,0.203134,99436.0,99435.0,0.11365738]
[1736968238922,0.203134,99436.0,99435.0,1.61365738]
[1736968247352,0.203134,99436.0,99435.0,1.50943046]
[1736968247571,0.203134,99436.0,99435.0,1.51295832]
[1736968247766,0.20290503,99436.0,99435.0,1.51514578]
[1736968248800,0.20090503,99436.0,99435.0,1.51514578]
[1736968248928,0.20590503,99436.0,99435.0,1.51514578]
[1736968249173,0.20790503,99436.0,99435.0,1.51514578]
[1736968249568,0.20590503,99436.0,99435.0,1.51514578]
[1736968249968,0.20990503,99436.0,99435.0,1.51514578]
[1736968250646,0.20990503,99436.0,99435.0,1.51600078]
[1736968251156,0.21170053,99436.0,99435.0,1.51600078]
[1736968253519,0.26040053,99436.0,99435.0,0.01600078]
[1736968255125,0.26040053,99436.0,99435.0,1.51600078]
[1736968262359,0.21170053,99436.0,99435.0,1.6202277]
[1736968263007,0.20770053,99436.0,99435.0,1.6202277]
[1736968263276,0.20270053,99436.0,99435.0,1.6202277]
[1736968263490,0.20470053,99436.0,99435.0,1.6202277]
[1736968263703,0.20270053,99436.0,99435.0,1.6202277]
[1736968265218,0.20270053,99436.0,99435.0,1.6222277]
[1736968265693,0.20370053,99436.0,99435.0,1.6222277]
[1736968268518,0.20370053,99436.0,99435.0,1.6163077]
[1736968268932,0.20370053,99436.0,99435.0,1.6221877]
[1736968271816,0.20370053,99436.0,99435.0,1.6163077]
[1736968272043,0.20370053,99436.0,99435.0,1.6221877]
[1736968275417,0.20370053,99436.0,99435.0,1.6163077]
[1736968275617,0.20370053,99436.0,99435.0,1.6221877]
[1736968275993,0.20370053,99436.0,99435.0,1.7044877]
[1736968276595,0.20370053,99436.0,99435.0,1.93715982]
[1736968277821,0.20370053,99436.0,99435.0,1.9059877]
[1736968278018,0.20370053,99436.0,99435.0,1.8236877]
[1736968278199,0.20370053,99436.0,99435.0,1.8178077]
[1736968278418,0.20370053,99436.0,99435.0,1.81562024]
[1736968278628,0.20370053,99436.0,99435.0,1.82017961]
[1736968278849,0.2135767,99436.0,99435.0,1.82017961]
[1736968279291,0.2135767,99436.0,99435.0,1.81429961]
[1736968279590,0.3635767,99436.0,99435.0,0.00857269]
[1736968279807,0.3635767,99436.0,99435.0,0.01445269]
[1736968280030,0.3635767,99436.0,99435.0,0.008735]
[1736968280442,0.3625767,99436.0,99435.0,0.002855]
[1736968280597,0.4423767,99436.0,99435.0,0.006735]
[1736968280802,0.4483767,99436.0,99435.0,0.007735]
[1736968281014,0.4483767,99436.0,99435.0,0.001855]
[1736968281225,0.2796,99435.0,99434.0,1e-06]
[1736968281427,0.35115,99428.0,99427.0,1.00532824]
[1736968281628,0.43095,99428.0,99427.0,1.0125534]
[1736968282427,0.48075,99428.0,99427.0,1.0184334]
[1736968282667,0.48475,99428.0,99427.0,1.0184334]
[1736968283103,0.48075,99428.0,99427.0,1.0184334]
[1736968283239,0.48475,99428.0,99427.0,1.0184334]
[1736968284148,0.49275,99428.0,99427.0,1.0184334]
[1736968284602,0.50175,99428.0,99427.0,1.0184334]
[1736968284827,0.48975,99428.0,99427.0,1.0184334]
[1736968285052,0.49475,99428.0,99427.0,1.0194334]
[1736968285260,0.50375,99428.0,99427.0,2.5194334]
[1736968285411,0.49875,99428.0,99427.0,2.5125534]
[1736968285625,0.49875,99428.0,99427.0,2.5184334]
[1736968285949,0.49875,99428.0,99427.0,2.5194334]
[1736968285950,0.50375,99428.0,99427.0,2.5194334]
[1736968286600,0.50375,99428.0,99427.0,1.0144084]
[1736968287765,0.50375,99428.0,99427.0,0.98721997]
[1736968287947,0.50375,99428.0,99409.0,0.0008561]
[1736968287948,0.351187,99410.0,99409.0,0.0008561]
[1736968288162,0.430987,99410.0,99409.0,1.01206434]
[1736968288772,0.430987,99410.0,99409.0,1.00618434]
[1736968289180,0.432987,99410.0,99409.0,1.01206434]
[1736968289596,0.482787,99410.0,99409.0,2.51206434]
[1736968289796,0.482787,99410.0,99409.0,2.50618434]
[1736968290219,0.482787,99410.0,99409.0,2.51206434]
[1736968290370,0.484787,99410.0,99409.0,2.51206434]
[1736968290780,0.484787,99410.0,99409.0,2.50618434]
[1736968290966,0.484787,99410.0,99409.0,2.51206434]
[1736968291171,0.484787,99410.0,99409.0,1.00618434]
[1736968291617,0.49463216,99410.0,99409.0,1.00618434]
[1736968292249,0.49263216,99410.0,99409.0,1.01218434]
[1736968292461,0.49763216,99410.0,99409.0,1.01218434]
[1736968292708,0.49763216,99410.0,99409.0,0.99206534]
[1736968292920,0.201191,99408.0,99398.0,0.06138612]
[1736968293129,0.20244868,99408.0,99406.0,1.00618434]
[1736968293343,0.201191,99408.0,99406.0,1.00618434]
[1736968293560,0.201191,99408.0,99407.0,0.00650995]
[1736968293561,0.351191,99408.0,99407.0,0.00650995]
[1736968294401,0.358191,99408.0,99407.0,0.00650995]
[1736968294608,0.358191,99408.0,99406.0,1.01218434]
[1736968294829,0.201191,99408.0,99407.0,0.00651435]
[1736968295029,0.208191,99408.0,99407.0,0.00651435]
[1736968295252,0.212191,99408.0,99407.0,1.50651435]
[1736968295453,0.205191,99408.0,99407.0,1.50651435]
[1736968295657,0.201191,99408.0,99407.0,0.00651435]
[1736968296090,0.205191,99408.0,99407.0,0.00651435]
[1736968296524,0.201191,99408.0,99407.0,0.00651435]
[1736968296729,0.206191,99408.0,99407.0,0.00651435]
[1736968297162,0.213191,99408.0,99407.0,0.00651435]
[1736968297549,0.206191,99408.0,99407.0,0.00651435]
[1736968297752,0.214191,99408.0,99407.0,0.00651435]
[1736968298159,0.214191,99408.0,99407.0,1.51336955]
[1736968299008,0.206191,99408.0,99407.0,1.51336955]
[1736968299182,0.201191,99408.0,99407.0,1.51336955]
[1736968299400,0.205191,99408.0,99407.0,1.51336955]
[1736968300384,0.211191,99408.0,99407.0,0.01336955]
[1736968301327,0.211191,99408.0,99407.0,0.11759647]
[1736968301666,0.201191,99408.0,99407.0,0.11759647]
[1736968302038,0.211191,99408.0,99407.0,0.11759647]
[1736968302902,0.211191,99408.0,99407.0,1.61759647]
[1736968303326,0.207191,99408.0,99407.0,1.61759647]
[1736968303535,0.202191,99408.0,99407.0,1.61759647]
[1736968303746,0.202191,99408.0,99407.0,1.61959647]
[1736968304197,0.202191,99408.0,99407.0,1.61759647]
[1736968304409,0.203191,99408.0,99407.0,1.61759647]
[1736968305355,0.202191,99408.0,99407.0,1.61759647]
[1736968305554,0.204191,99408.0,99407.0,1.61759647]
[1736968306331,0.204191,99408.0,99407.0,1.71759647]
[1736968306332,0.003,99408.0,99407.0,1.71759647]
[1736968306765,0.00179593,99410.0,99407.0,1.71759647]
[1736968306943,0.00179593,99410.0,99409.0,0.10422692]
[1736968307367,0.00179593,99410.0,99409.0,0.11067918]
[1736968307577,0.00179593,99410.0,99409.0,1.61067918]
[1736968308203,0.00179593,99410.0,99409.0,1.61267918]
[1736968309157,0.00279593,99410.0,99409.0,1.61267918]